[Event "CZE Extraliga 2019-20"]
[Site "Czech Republic"]
[Date "2019.10.12"]
[Round "1"]
[White "Biolek, Richard Jr."]
[Black "Krejci, Jan"]
[Result "1/2-1/2"]
[ECO "C68"]
[WhiteElo "2454"]
[BlackElo "2574"]
[Annotator "RC"]
[PlyCount "97"]
[EventDate "2019.10.12"]
[EventType "team-tourn"]
[EventCountry "CZE"]
[SourceTitle "playchess.com"]
[Source "ChessBase"]
[SourceQuality "1"]
[WhiteTeam "Czech Republic"]
[BlackTeam "Novoborsky"]
[WhiteTeamCountry "CZE"]
[BlackTeamCountry "CZE"]
[TimeControl "40/5400+30:1800+30"]

1. e4 {[%emt 0:00:00]} e5 {[%emt 0:00:00]} 2. Nf3 {[%emt 0:00:00]} Nc6 {[%emt 0:00:00]} 3. Bb5 {[%emt 0:00:00]} a6 {[%emt 0:00:05]} 4. Bxc6 {[%emt 0:03:32]} dxc6 {[%emt 0:00:14]} 5. O-O {[%emt 0:00:03]} Qf6 {[%emt 0:01:25]} 6. d4 {[%emt 0:04:32]} exd4 {[%emt 0:03:23]} 7. Bg5 {[%emt 0:06:52]} Qd6 {[%emt 0:00:08]} 8. Qxd4 {[%emt 0:08:33]} f6 {[%emt 0:06:34]} 9. Be3 {[%emt 0:03:32]} Qxd4 {[%emt 0:02:52]} 10. Nxd4 {[%emt 0:00:16]} Bd7 {[%emt 0:00:06]} 11. Nc3 {[%emt 0:03:33]} Ne7 {[%emt 0:03:13]} 12. Rad1 {[%emt 0:12:37]} Ng6 {[%emt 0:01:53]} 13. f4 {[%emt 0:04:47]} O-O-O {[%emt 0:02:45]} 14. Nf3 {[%emt 0:13:58]} Bd6 {[%emt 0:07:11]} 15. f5 {[%emt 0:05:07]} Ne5 {[%emt 0:01:54]} 16. Nxe5 {[%emt 0:00:09]} Bxe5 {[%emt 0:00:10]} 17. Bf4 {[%emt 0:00:06]} Bxc3 {[%emt 0:10:57]} 18. bxc3 {[%emt 0:00:26]} Rde8 {[%emt 0:00:06]} 19. Rfe1 {[%emt 0:01:18]} Re7 {[%emt 0:01:08]} 20. Re3 {[%emt 0:00:43]} g5 {[%emt 0:03:31]} 21. fxg6 {[%emt 0:00:05]} hxg6 {[%emt 0:00:02]} 22. e5 {[%emt 0:02:46]} fxe5 {[%emt 0:01:50]} 23. Bxe5 {[%emt 0:05:47]} Rhe8 {[%emt 0:03:15]} 24. Rde1 {[%emt 0:00:30]} Bf5 {[%emt 0:00:11]} 25. Bd4 {[%emt 0:00:34]} Rxe3 {[%emt 0:00:30]} 26. Rxe3 {[%emt 0:00:02]} Rxe3 {[%emt 0:04:17]} 27. Bxe3 {[%emt 0:00:04]} b6 {[%emt 0:00:05]} 28. Kf2 {[%emt 0:02:05]} Kd7 {[%emt 0:03:07]} 29. Ke2 {[%emt 0:00:09]} Bxc2 {[%emt 0:00:06]} 30. Kd2 {[%emt 0:00:24]} Be4 {[%emt 0:00:29]} 31. g3 {[%emt 0:00:24]} Bf5 {[%emt 0:00:10]} 32. h4 {[%emt 0:00:09]} c5 {[%emt 0:01:12]} 33. Kc1 {[%emt 0:00:05]} Kc6 {[%emt 0:00:51]} 34. Bf4 {[%emt 0:00:36]} b5 {[%emt 0:02:17]} 35. Kb2 {[%emt 0:00:35]} a5 {[%emt 0:01:51]} 36. Be5 {[%emt 0:02:16]} Be6 {[%emt 0:02:36]} 37. a3 {[%emt 0:00:56]} Kb6 {[%emt 0:01:11]} 38. Bf4 {[%emt 0:00:38]} b4 {[%emt 0:04:01]} 39. Be5 {[%emt 0:00:07]} c6 {[%emt 0:00:21]} 40. Bf6 {[%emt 0:01:48]} Kb5 {[%emt 0:00:19]} 41. Be7 {[%emt 0:30:51]} Kc4 {[%emt 0:30:13]} 42. Bf6 {[%emt 0:00:02]} Bg4 {[%emt 0:00:45]} 43. Bg7 {[%emt 0:00:04]} Kd3 {[%emt 0:00:47]} 44. Bf6 {[%emt 0:00:04]} Bd1 {[%emt 0:01:43]} 45. Bg7 {[%emt 0:00:17]} Kc4 {[%emt 0:00:14]} 46. Bf6 {[%emt 0:00:06]} Kb5 {[%emt 0:00:04]} 47. Be7 {[%emt 0:00:25]} Bf3 {[%emt 0:00:34]} 48. Bf8 {[%emt 0:00:16]} Kc4 {[%emt 0:00:08]} 49. Bg7 {[%emt 0:00:04]} 1/2-1/2

[Event "CZE Extraliga 2019-20"]
[Site "Czech Republic"]
[Date "2019.10.12"]
[Round "1"]
[White "Priehoda, Vitezslav"]
[Black "Richterova, Natasa"]
[Result "1/2-1/2"]
[ECO "D23"]
[WhiteElo "2344"]
[BlackElo "2212"]
[Annotator "ChessBase"]
[PlyCount "83"]
[EventDate "2019.10.12"]
[EventType "team-tourn"]
[EventCountry "CZE"]
[SourceTitle "playchess.com"]
[Source "ChessBase"]
[SourceQuality "1"]
[WhiteTeam "Lysa nad Labem"]
[BlackTeam "Ostrava"]
[WhiteTeamCountry "CZE"]
[BlackTeamCountry "CZE"]
[TimeControl "40/5400+30:1800+30"]

1. d4 {[%emt 0:00:00]} d5 {[%emt 0:00:00]} 2. c4 {[%emt 0:00:00]} c6 {[%emt 0:00:00]} 3. Nf3 {[%emt 0:00:00]} Nf6 {[%emt 0:00:00]} 4. Qb3 {[%emt 0:00:09]} dxc4 {[%emt 0:02:55]} 5. Qxc4 {[%emt 0:00:09]} Qd5 {[%emt 0:00:06]} 6. Qxd5 {[%emt 0:14:21]} cxd5 {[%emt 0:00:43]} 7. Nc3 {[%emt 0:00:04]} a6 {[%emt 0:05:01]} 8. Bg5 {[%emt 0:03:31]} e6 {[%emt 0:03:20]} 9. e3 {[%emt 0:04:45]} Nc6 {[%emt 0:05:00]} 10. Bd3 {[%emt 0:00:37]} Nb4 {[%emt 0:05:07]} 11. Bb1 {[%emt 0:00:57]} Bd7 {[%emt 0:00:21]} 12. O-O {[%emt 0:04:38]} h6 {[%emt 0:01:42]} 13. Bh4 {[%emt 0:05:07]} Bd6 {[%emt 0:03:46]} 14. Rc1 {[%emt 0:06:58]} O-O {[%emt 0:05:44]} 15. a3 {[%emt 0:11:51]} Nc6 {[%emt 0:00:51]} 16. b4 {[%emt 0:01:02]} Rac8 {[%emt 0:06:12]} 17. Bd3 {[%emt 0:07:03]} Na7 {[%emt 0:05:58]} 18. Nd2 {[%emt 0:17:39]} g5 {[%emt 0:09:41]} 19. Bg3 {[%emt 0:00:06]} Bxg3 {[%emt 0:00:06]} 20. hxg3 {[%emt 0:00:08]} Rc7 {[%emt 0:00:18]} 21. Nb3 {[%emt 0:07:21]} Rfc8 {[%emt 0:01:17]} 22. Nc5 {[%emt 0:03:55]} Be8 {[%emt 0:07:41]} 23. Ne2 {[%emt 0:02:57]} Bb5 {[%emt 0:02:58]} 24. Bxb5 {[%emt 0:00:20]} axb5 {[%emt 0:02:17]} 25. f3 {[%emt 0:02:04]} Ne8 {[%emt 0:03:36]} 26. Kf2 {[%emt 0:02:43]} Nd6 {[%emt 0:01:18]} 27. Nd3 {[%emt 0:02:49]} Rxc1 {[%emt 0:01:01]} 28. Rxc1 {[%emt 0:01:08]} Rxc1 {[%emt 0:00:08]} 29. Nexc1 {[%emt 0:00:50]} Nc4 {[%emt 0:00:04]} 30. Nc5 {[%emt 0:01:00]} b6 {[%emt 0:00:39]} 31. Nd7 {[%emt 0:00:09]} Nxa3 {[%emt 0:00:31]} 32. Nxb6 {[%emt 0:00:11]} Nc6 {[%emt 0:01:41]} 33. Na2 {[%emt 0:00:16]} f6 {[%emt 0:07:20]} 34. Na8 {[%emt 0:00:38]} Kf7 {[%emt 0:02:17]} 35. Nc7 {[%emt 0:00:10]} Ke7 {[%emt 0:00:19]} 36. Nc3 {[%emt 0:00:15]} Na7 {[%emt 0:03:33]} 37. Ke2 {[%emt 0:00:48]} Kd7 {[%emt 0:00:07]} 38. Na6 {[%emt 0:00:06]} Kd6 {[%emt 0:00:28]} 39. Nc5 {[%emt 0:01:24]} Nc6 {[%emt 0:01:05]} 40. Na6 {[%emt 0:00:00]} Nc2 {[%emt 0:00:00]} 41. Nxb5+ {[%emt 0:01:56]} Ke7 {[%emt 0:09:14]} 42. g4 {[%emt 0:02:59]} 1/2-1/2

[Event "CZE Extraliga 2019-20"]
[Site "Czech Republic"]
[Date "2019.10.12"]
[Round "1"]
[White "Koziol, Kamil"]
[Black "Yemelin, Vasily"]
[Result "1-0"]
[ECO "C12"]
[WhiteElo "2283"]
[BlackElo "2546"]
[Annotator "ChessBase"]
[PlyCount "89"]
[EventDate "2019.10.12"]
[EventType "team-tourn"]
[EventCountry "CZE"]
[SourceTitle "playchess.com"]
[Source "ChessBase"]
[SourceQuality "1"]
[WhiteTeam "Ostrava"]
[BlackTeam "Lysa nad Labem"]
[WhiteTeamCountry "POL"]
[BlackTeamCountry "RUS"]
[TimeControl "40/5400+30:1800+30"]

1. e4 {[%emt 0:00:00]} e6 {[%emt 0:00:00]} 2. d4 {[%emt 0:00:00]} d5 {[%emt 0:00:00]} 3. Nc3 {[%emt 0:00:12]} Nf6 {[%emt 0:00:30]} 4. Bg5 {[%emt 0:01:03]} Bb4 {[%emt 0:00:43]} 5. e5 {[%emt 0:01:38]} h6 {[%emt 0:00:06]} 6. Bd2 {[%emt 0:00:50]} Bxc3 {[%emt 0:00:10]} 7. bxc3 {[%emt 0:00:09]} Ne4 {[%emt 0:00:04]} 8. Bc1 {[%emt 0:00:06]} c5 {[%emt 0:29:58]} 9. Ne2 {[%emt 0:01:28]} Qa5 {[%emt 0:23:53]} 10. f3 {[%emt 0:06:35]} Ng5 {[%emt 0:00:32]} 11. h4 {[%emt 0:07:06]} Nh7 {[%emt 0:00:05]} 12. Kf2 {[%emt 0:07:46]} Nc6 {[%emt 0:06:08]} 13. g4 {[%emt 0:06:25]} Bd7 {[%emt 0:10:35]} 14. Bg2 {[%emt 0:15:38]} O-O-O {[%emt 0:02:52]} 15. f4 {[%emt 0:10:26]} f6 {[%emt 0:05:22]} 16. Bf3 {[%emt 0:09:03]} Rdf8 {[%emt 0:06:39]} 17. Qd3 {[%emt 0:06:06]} Be8 {[%emt 0:05:24]} 18. a4 {[%emt 0:06:07]} fxe5 {[%emt 0:05:11]} 19. fxe5 {[%emt 0:01:30]} c4 {[%emt 0:00:45]} 20. Qe3 {[%emt 0:02:28]} Bg6 {[%emt 0:00:29]} 21. Ba3 {[%emt 0:01:26]} Rf7 {[%emt 0:00:30]} 22. Nf4 {[%emt 0:01:54]} Bxc2 {[%emt 0:00:21]} 23. Rhc1 {[%emt 0:05:36]} Be4 {[%emt 0:00:37]} 24. Bxe4 {[%emt 0:00:43]} g5 {[%emt 0:00:21]} 25. hxg5 {[%emt 0:05:07]} hxg5 {[%emt 0:00:10]} 26. Bc2 {[%emt 0:00:22]} Rxf4+ {[%emt 0:01:01]} 27. Kg3 {[%emt 0:00:03]} Nf8 {[%emt 0:00:29]} 28. Rh1 {[%emt 0:01:17]} Rg8 {[%emt 0:00:32]} 29. Rh6 {[%emt 0:01:42]} Qc7 {[%emt 0:00:23]} 30. Rah1 {[%emt 0:00:43]} Qf7 {[%emt 0:00:36]} 31. Rh8 {[%emt 0:00:58]} Ng6 {[%emt 0:00:25]} 32. Rxg8+ {[%emt 0:00:34]} Qxg8 {[%emt 0:00:02]} 33. Rh5 {[%emt 0:00:43]} Nge7 {[%emt 0:00:56]} 34. Rxg5 {[%emt 0:00:27]} Qxg5 {[%emt 0:00:37]} 35. Qxf4 {[%emt 0:00:01]} Qg8 {[%emt 0:00:26]} 36. Qf6 {[%emt 0:00:43]} Kd7 {[%emt 0:00:24]} 37. g5 {[%emt 0:00:42]} a6 {[%emt 0:00:27]} 38. g6 {[%emt 0:00:33]} b5 {[%emt 0:00:43]} 39. axb5 {[%emt 0:00:37]} axb5 {[%emt 0:00:01]} 40. g7 {[%emt 0:00:00]} Qa8 {[%emt 0:00:00]} 41. Bxe7 {[%emt 0:18:13]} Nxe7 {[%emt 0:03:45]} 42. Qf7 {[%emt 0:00:28]} Qa1 {[%emt 0:16:58]} 43. Kh2 {[%emt 0:00:38]} Qa8 {[%emt 0:03:02]} 44. Bg6 {[%emt 0:03:13]} b4 {[%emt 0:02:13]} 45. Qf8 {[%emt 0:01:09]} 1-0

[Event "CZE Extraliga 2019-20"]
[Site "Czech Republic"]
[Date "2019.10.12"]
[Round "1"]
[White "Walek, Petr"]
[Black "Jansa, Vlastimil"]
[Result "0-1"]
[ECO "B46"]
[WhiteElo "2263"]
[BlackElo "2452"]
[Annotator "ChessBase"]
[PlyCount "58"]
[EventDate "2019.10.12"]
[EventType "team-tourn"]
[EventCountry "CZE"]
[SourceTitle "playchess.com"]
[Source "ChessBase"]
[SourceQuality "1"]
[WhiteTeam "Ostrava"]
[BlackTeam "Lysa nad Labem"]
[WhiteTeamCountry "CZE"]
[BlackTeamCountry "CZE"]
[TimeControl "40/5400+30:1800+30"]

1. e4 {[%emt 0:00:00]} c5 {[%emt 0:00:00]} 2. Nf3 {[%emt 0:00:00]} e6 {[%emt 0:00:00]} 3. d4 {[%emt 0:00:00]} cxd4 {[%emt 0:00:00]} 4. Nxd4 {[%emt 0:00:03]} Nc6 {[%emt 0:00:00]} 5. Nc3 {[%emt 0:00:21]} a6 {[%emt 0:00:06]} 6. f4 {[%emt 0:00:22]} Qc7 {[%emt 0:01:31]} 7. Nxc6 {[%emt 0:02:07]} bxc6 {[%emt 0:00:50]} 8. Bd3 {[%emt 0:03:55]} d5 {[%emt 0:00:26]} 9. O-O {[%emt 0:02:18]} Nf6 {[%emt 0:00:32]} 10. Kh1 {[%emt 0:02:45]} Be7 {[%emt 0:01:13]} 11. b3 {[%emt 0:01:43]} O-O {[%emt 0:01:06]} 12. Bb2 {[%emt 0:11:13]} Bb7 {[%emt 0:07:46]} 13. Qe2 {[%emt 0:16:25]} c5 {[%emt 0:08:04]} 14. exd5 {[%emt 0:05:17]} exd5 {[%emt 0:01:26]} 15. Rae1 {[%emt 0:00:19]} Rae8 {[%emt 0:20:34]} 16. Nb5 {[%emt 0:12:49]} Qc6 {[%emt 0:09:22]} 17. Nc7 {[%emt 0:06:44]} Rc8 {[%emt 0:01:12]} 18. Nxa6 {[%emt 0:15:33]} Ne4 {[%emt 0:09:58]} 19. Bb5 {[%emt 0:07:08]} Qh6 {[%emt 0:01:55]} 20. Rf3 {[%emt 0:00:19]} Bh4 {[%emt 0:08:26]} 21. Ref1 {[%emt 0:06:26]} Ng3+ {[%emt 0:00:45]} 22. Rxg3 {[%emt 0:00:04]} Bxg3 {[%emt 0:00:10]} 23. h3 {[%emt 0:00:06]} d4 {[%emt 0:06:35]} 24. Kg1 {[%emt 0:00:14]} Bxf4 {[%emt 0:01:12]} 25. b4 {[%emt 0:01:22]} Be3+ {[%emt 0:00:16]} 26. Kh2 {[%emt 0:00:23]} Qd6+ {[%emt 0:00:30]} 27. g3 {[%emt 0:00:29]} cxb4 {[%emt 0:01:31]} 28. Bc1 {[%emt 0:02:13]} Bxc1 {[%emt 0:01:41]} 29. Rxc1 {[%emt 0:00:04]} Ra8 {[%emt 0:00:44]} 0-1

[Event "CZE Extraliga 2019-20"]
[Site "Czech Republic"]
[Date "2019.10.12"]
[Round "1"]
[White "Krajina, Ales"]
[Black "Kislinsky, Alexey"]
[Result "0-1"]
[ECO "A48"]
[WhiteElo "2141"]
[BlackElo "2442"]
[Annotator "ChessBase"]
[PlyCount "88"]
[EventDate "2019.10.12"]
[EventType "team-tourn"]
[EventCountry "CZE"]
[SourceTitle "playchess.com"]
[Source "ChessBase"]
[SourceQuality "1"]
[WhiteTeam "Ostrava"]
[BlackTeam "Lysa nad Labem"]
[WhiteTeamCountry "CZE"]
[BlackTeamCountry "CZE"]
[TimeControl "40/5400+30:1800+30"]

1. d4 {[%emt 0:00:00]} Nf6 {[%emt 0:00:33]} 2. Nf3 {[%emt 0:00:00]} g6 {[%emt 0:00:14]} 3. Nc3 {[%emt 0:00:24]} c5 {[%emt 0:03:02]} 4. Bg5 {[%emt 0:05:08]} Bg7 {[%emt 0:00:40]} 5. e3 {[%emt 0:03:23]} cxd4 {[%emt 0:02:40]} 6. exd4 {[%emt 0:05:25]} d5 {[%emt 0:02:33]} 7. h3 {[%emt 0:01:15]} O-O {[%emt 0:00:15]} 8. Bd3 {[%emt 0:01:19]} Nc6 {[%emt 0:00:06]} 9. a3 {[%emt 0:02:22]} h6 {[%emt 0:02:17]} 10. Bf4 {[%emt 0:01:06]} Nh5 {[%emt 0:00:37]} 11. Be3 {[%emt 0:01:54]} e5 {[%emt 0:00:09]} 12. Be2 {[%emt 0:15:43]} e4 {[%emt 0:01:18]} 13. Nh2 {[%emt 0:00:20]} f5 {[%emt 0:01:09]} 14. Bxh5 {[%emt 0:00:37]} gxh5 {[%emt 0:00:28]} 15. Qd2 {[%emt 0:00:50]} Kh7 {[%emt 0:10:31]} 16. Ne2 {[%emt 0:01:58]} Be6 {[%emt 0:02:52]} 17. Nf4 {[%emt 0:05:31]} Bf7 {[%emt 0:00:10]} 18. Nf1 {[%emt 0:01:06]} h4 {[%emt 0:00:48]} 19. g3 {[%emt 0:00:07]} Na5 {[%emt 0:24:04]} 20. b3 {[%emt 0:07:11]} b6 {[%emt 0:04:34]} 21. gxh4 {[%emt 0:00:47]} Rc8 {[%emt 0:02:24]} 22. Ng3 {[%emt 0:02:33]} Qd7 {[%emt 0:00:26]} 23. O-O {[%emt 0:06:35]} Bf6 {[%emt 0:06:23]} 24. h5 {[%emt 0:05:06]} Rc6 {[%emt 0:02:08]} 25. Kh2 {[%emt 0:01:49]} Rfc8 {[%emt 0:00:07]} 26. Ra2 {[%emt 0:01:20]} Qc7 {[%emt 0:01:31]} 27. Nxf5 {[%emt 0:03:00]} Bxh5 {[%emt 0:00:33]} 28. Rg1 {[%emt 0:05:01]} Bf3 {[%emt 0:01:58]} 29. Ng3 {[%emt 0:04:18]} Qf7 {[%emt 0:01:29]} 30. Ng2 {[%emt 0:05:08]} h5 {[%emt 0:02:48]} 31. Bg5 {[%emt 0:00:26]} Rg8 {[%emt 0:01:04]} 32. Bxf6 {[%emt 0:00:48]} Rxf6 {[%emt 0:00:23]} 33. Nh4 {[%emt 0:00:59]} Rf4 {[%emt 0:01:46]} 34. Ng2 {[%emt 0:04:03]} Bxg2 {[%emt 0:00:09]} 35. Rxg2 {[%emt 0:00:02]} h4 {[%emt 0:00:17]} 36. Nh1 {[%emt 0:00:25]} Rf3 {[%emt 0:01:02]} 37. Rxg8 {[%emt 0:00:50]} Qxg8 {[%emt 0:00:37]} 38. Ra1 {[%emt 0:00:53]} Nc6 {[%emt 0:01:32]} 39. Rg1 {[%emt 0:00:23]} Rxh3+ {[%emt 0:01:54]} 40. Kxh3 {[%emt 0:00:00]} Qxg1 {[%emt 0:00:00]} 41. Kxh4 {[%emt 0:03:04]} Qxh1+ {[%emt 0:00:14]} 42. Kg4 {[%emt 0:00:20]} Qf3+ {[%emt 0:00:41]} 43. Kg5 {[%emt 0:00:19]} Nd8 {[%emt 0:01:03]} 44. Qf4 {[%emt 0:02:21]} Ne6+ {[%emt 0:00:06]} 0-1

[Event "CZE Extraliga 2019-20"]
[Site "Czech Republic"]
[Date "2019.10.12"]
[Round "1.1"]
[White "Balogh, Csaba"]
[Black "Stohl, Igor"]
[Result "1-0"]
[ECO "C42"]
[WhiteElo "2587"]
[BlackElo "2487"]
[Annotator "ChessBase"]
[PlyCount "123"]
[EventDate "2019.09.15"]
[EventType "team-tourn"]
[EventCountry "CZE"]
[SourceTitle "playchess.com"]
[Source "ChessBase"]
[SourceQuality "1"]
[TimeControl "40/5400+30:1800+30"]

1. e4 {[%emt 0:00:00]} e5 {[%emt 0:00:00]} 2. Nf3 {[%emt 0:00:00]} Nf6 {[%emt 0:00:52]} 3. Nxe5 {[%emt 0:01:13]} d6 {[%emt 0:00:08]} 4. Nc4 {[%emt 0:00:49]} Nxe4 {[%emt 0:00:24]} 5. Qe2 {[%emt 0:00:18]} Qe7 {[%emt 0:00:37]} 6. Ne3 {[%emt 0:00:14]} Be6 {[%emt 0:06:17]} 7. c4 {[%emt 0:02:20]} c6 {[%emt 0:03:51]} 8. g3 {[%emt 0:01:41]} g6 {[%emt 0:03:22]} 9. Bg2 {[%emt 0:01:13]} Nf6 {[%emt 0:02:16]} 10. Nc3 {[%emt 0:05:21]} Bg7 {[%emt 0:02:10]} 11. d4 {[%emt 0:01:11]} O-O {[%emt 0:03:13]} 12. O-O {[%emt 0:00:21]} Bd7 {[%emt 0:04:27]} 13. b4 {[%emt 0:15:38]} Na6 {[%emt 0:12:40]} 14. b5 {[%emt 0:05:49]} Nc7 {[%emt 0:01:41]} 15. a4 {[%emt 0:09:47]} Rab8 {[%emt 0:09:50]} 16. Ba3 {[%emt 0:12:32]} c5 {[%emt 0:03:21]} 17. Rad1 {[%emt 0:00:18]} b6 {[%emt 0:03:01]} 18. Rfe1 {[%emt 0:00:58]} Rfe8 {[%emt 0:07:24]} 19. Qd2 {[%emt 0:08:25]} Qf8 {[%emt 0:03:20]} 20. Bb2 {[%emt 0:04:41]} Rbd8 {[%emt 0:11:02]} 21. d5 {[%emt 0:01:12]} a5 {[%emt 0:09:40]} 22. f4 {[%emt 0:13:45]} Ng4 {[%emt 0:04:19]} 23. Ne4 {[%emt 0:04:45]} Bxb2 {[%emt 0:01:17]} 24. Qxb2 {[%emt 0:00:04]} Qg7 {[%emt 0:00:25]} 25. Qxg7+ {[%emt 0:05:59]} Kxg7 {[%emt 0:00:04]} 26. Nf1 {[%emt 0:00:12]} Bf5 {[%emt 0:01:24]} 27. h3 {[%emt 0:00:20]} Bxe4 {[%emt 0:01:01]} 28. Bxe4 {[%emt 0:00:13]} Nh6 {[%emt 0:01:51]} 29. Kf2 {[%emt 0:01:41]} f5 {[%emt 0:00:51]} 30. Bd3 {[%emt 0:00:27]} Rxe1 {[%emt 0:00:15]} 31. Rxe1 {[%emt 0:00:03]} Re8 {[%emt 0:00:09]} 32. Ne3 {[%emt 0:00:19]} Nf7 {[%emt 0:02:06]} 33. g4 {[%emt 0:00:34]} fxg4 {[%emt 0:00:55]} 34. hxg4 {[%emt 0:00:04]} h6 {[%emt 0:00:21]} 35. Kf3 {[%emt 0:03:19]} Rf8 {[%emt 0:00:34]} 36. Kg3 {[%emt 0:00:12]} Re8 {[%emt 0:00:22]} 37. Kf3 {[%emt 0:00:05]} Rf8 {[%emt 0:00:10]} 38. Kg3 {[%emt 0:00:04]} Re8 {[%emt 0:00:08]} 39. Re2 {[%emt 0:01:46]} Kf6 {[%emt 0:01:25]} 40. Kf3 {[%emt 0:00:11]} Kg7 {[%emt 0:01:06]} 41. Rh2 {[%emt 0:04:48]} Rf8 {[%emt 0:03:09]} 42. Kg3 {[%emt 0:00:38]} Re8 {[%emt 0:01:26]} 43. Kf3 {[%emt 0:00:21]} Rf8 {[%emt 0:00:15]} 44. Bc2 {[%emt 0:00:58]} Ne8 {[%emt 0:04:47]} 45. Re2 {[%emt 0:03:18]} Nf6 {[%emt 0:03:45]} 46. Ng2 {[%emt 0:00:38]} Re8 {[%emt 0:08:41]} 47. Re6 {[%emt 0:01:13]} Rxe6 {[%emt 0:07:48]} 48. dxe6 {[%emt 0:00:08]} Nd8 {[%emt 0:00:05]} 49. f5 {[%emt 0:00:34]} d5 {[%emt 0:01:58]} 50. cxd5 {[%emt 0:05:54]} Nxd5 {[%emt 0:01:26]} 51. Ne3 {[%emt 0:01:50]} Ne7 {[%emt 0:03:10]} 52. Ke4 {[%emt 0:03:40]} Kf6 {[%emt 0:00:35]} 53. Nd5+ {[%emt 0:01:18]} Nxd5 {[%emt 0:00:03]} 54. Kxd5 {[%emt 0:00:05]} gxf5 {[%emt 0:00:36]} 55. gxf5 {[%emt 0:06:21]} h5 {[%emt 0:00:26]} 56. Kd6 {[%emt 0:00:04]} h4 {[%emt 0:00:35]} 57. Kd7 {[%emt 0:00:06]} Nf7 {[%emt 0:00:41]} 58. exf7 {[%emt 0:05:40]} Kxf7 {[%emt 0:00:03]} 59. Kd6 {[%emt 0:01:15]} Kf6 {[%emt 0:00:20]} 60. Kd5 {[%emt 0:00:17]} h3 {[%emt 0:00:25]} 61. Bd3 {[%emt 0:00:49]} h2 {[%emt 0:00:55]} 62. Be4 {[%emt 0:00:03]} 1-0

[Event "CZE Extraliga 2019-20"]
[Site "Czech Republic"]
[Date "2019.10.12"]
[Round "1.1"]
[White "Ponizil, Cyril"]
[Black "UNI2 Cernousek Lukas IM"]
[Result "1/2-1/2"]
[ECO "A08"]
[WhiteElo "2504"]
[BlackElo "2458"]
[Annotator "ChessBase"]
[PlyCount "132"]
[EventDate "2019.09.15"]
[EventType "team-tourn"]
[EventCountry "CZE"]
[SourceTitle "playchess.com"]
[Source "ChessBase"]
[SourceQuality "1"]
[WhiteTeam "Duras"]
[TimeControl "40/5400+30:1800+30"]

1. Nf3 {[%emt 0:00:00]} d5 {[%emt 0:00:12]} 2. g3 {[%emt 0:00:00]} c5 {[%emt 0:00:15]} 3. Bg2 {[%emt 0:00:00]} Nf6 {[%emt 0:00:05]} 4. O-O {[%emt 0:00:00]} e6 {[%emt 0:01:02]} 5. d3 {[%emt 0:00:22]} Nc6 {[%emt 0:00:17]} 6. Nbd2 {[%emt 0:01:22]} g6 {[%emt 0:00:23]} 7. e4 {[%emt 0:00:10]} Bg7 {[%emt 0:00:05]} 8. exd5 {[%emt 0:01:35]} Nxd5 {[%emt 0:01:07]} 9. Nc4 {[%emt 0:00:15]} h6 {[%emt 0:11:26]} 10. Re1 {[%emt 0:05:10]} Qc7 {[%emt 0:01:31]} 11. Ng5 {[%emt 0:06:54]} O-O {[%emt 0:04:53]} 12. Ne4 {[%emt 0:02:19]} b6 {[%emt 0:07:36]} 13. Ne3 {[%emt 0:01:34]} Nxe3 {[%emt 0:08:49]} 14. Bxe3 {[%emt 0:00:05]} Bb7 {[%emt 0:00:07]} 15. Bf4 {[%emt 0:05:54]} e5 {[%emt 0:01:03]} 16. Bd2 {[%emt 0:00:05]} Rad8 {[%emt 0:01:53]} 17. a4 {[%emt 0:04:10]} Nd4 {[%emt 0:02:09]} 18. Be3 {[%emt 0:02:53]} c4 {[%emt 0:11:00]} 19. Bxd4 {[%emt 0:10:40]} Rxd4 {[%emt 0:00:25]} 20. Re3 {[%emt 0:00:03]} Rfd8 {[%emt 0:05:38]} 21. Ra3 {[%emt 0:18:03]} f5 {[%emt 0:01:36]} 22. Nc3 {[%emt 0:05:56]} Bxg2 {[%emt 0:02:09]} 23. Kxg2 {[%emt 0:00:02]} Qc6+ {[%emt 0:04:54]} 24. Qf3 {[%emt 0:01:14]} Qxf3+ {[%emt 0:02:06]} 25. Kxf3 {[%emt 0:03:46]} cxd3 {[%emt 0:03:42]} 26. cxd3 {[%emt 0:00:04]} f4 {[%emt 0:08:06]} 27. gxf4 {[%emt 0:01:22]} exf4 {[%emt 0:00:12]} 28. Re6 {[%emt 0:00:42]} Kf7 {[%emt 0:07:11]} 29. Re2 {[%emt 0:07:38]} Rxd3+ {[%emt 0:13:19]} 30. Kxf4 {[%emt 0:00:04]} Bf8 {[%emt 0:00:33]} 31. Ra1 {[%emt 0:02:55]} Bd6+ {[%emt 0:01:01]} 32. Ke4 {[%emt 0:04:58]} Bxh2 {[%emt 0:00:33]} 33. Re3 {[%emt 0:00:03]} Rd2 {[%emt 0:00:35]} 34. Kf3 {[%emt 0:00:32]} Rf8 {[%emt 0:00:30]} 35. Kg2 {[%emt 0:02:13]} Bf4 {[%emt 0:00:24]} 36. Rf3 {[%emt 0:00:15]} g5 {[%emt 0:00:17]} 37. a5 {[%emt 0:02:46]} Rxb2 {[%emt 0:00:40]} 38. axb6 {[%emt 0:00:04]} axb6 {[%emt 0:00:06]} 39. Ra6 {[%emt 0:00:32]} Kg7 {[%emt 0:00:33]} 40. Nd5 {[%emt 0:01:15]} b5 {[%emt 0:00:50]} 41. Ra7+ {[%emt 0:31:42]} Kg6 {[%emt 0:09:35]} 42. Ra6+ {[%emt 0:00:00]} Kg7 {[%emt 0:00:05]} 43. Ra7+ {[%emt 0:00:00]} Kg8 {[%emt 0:00:06]} 44. Ra6 {[%emt 0:00:00]} Rf7 {[%emt 0:07:44]} 45. Rg6+ {[%emt 0:00:00]} Kh7 {[%emt 0:01:31]} 46. Re6 {[%emt 0:00:00]} Rc2 {[%emt 0:04:45]} 47. Nxf4 {[%emt 0:00:00]} Rxf4 {[%emt 0:05:28]} 48. Rxf4 {[%emt 0:00:00]} gxf4 {[%emt 0:00:02]} 49. Rb6 {[%emt 0:00:00]} Rb2 {[%emt 0:00:43]} 50. Kf3 {[%emt 0:00:00]} b4 {[%emt 0:03:25]} 51. Kg4 {[%emt 0:00:00]} b3 {[%emt 0:00:22]} 52. Kf5 {[%emt 0:00:00]} Kg7 {[%emt 0:00:17]} 53. f3 {[%emt 0:00:00]} Rb1 {[%emt 0:00:01]} 54. Rg6+ {[%emt 0:00:00]} Kh7 {[%emt 0:00:10]} 55. Rb6 {[%emt 0:00:00]} Kg7 {[%emt 0:03:15]} 56. Rg6+ {[%emt 0:00:00]} Kf7 {[%emt 0:00:32]} 57. Rxh6 {[%emt 0:00:00]} Ke7 {[%emt 0:00:38]} 58. Rb6 {[%emt 0:00:00]} Kd7 {[%emt 0:00:10]} 59. Ke4 {[%emt 0:00:00]} Kc7 {[%emt 0:00:16]} 60. Rb4 {[%emt 0:00:00]} Kc6 {[%emt 0:00:31]} 61. Kd4 {[%emt 0:00:35]} Kd6 {[%emt 0:01:04]} 62. Rb6+ {[%emt 0:00:33]} Kc7 {[%emt 0:00:22]} 63. Rb4 {[%emt 0:00:04]} b2 {[%emt 0:00:41]} 64. Kc3 {[%emt 0:00:10]} Rf1 {[%emt 0:00:27]} 65. Rxb2 {[%emt 0:00:09]} Rxf3+ {[%emt 0:00:29]} 66. Kd4 {[%emt 0:00:04]} Kd6 {[%emt 0:00:23]} 1/2-1/2